fUST/lending_fUST_20250504
["ID","MTS","AMOUNT","RATE_DAILY","PERIOD"]
[359807764,1746355856068,-72.94898455,0.00038904,15]
[359807766,1746355856079,-611.15,0.00038904,15]
[359807768,1746355856089,-139.81189474,0.00038904,15]
[359808134,1746356581443,910.07905711,0.00026849,20]
[359808136,1746356730098,-247.45590877,0.00025205,2]
[359808137,1746356736095,-252.54409123,0.00025205,2]
[359808138,1746356736116,-2274.21027066,0.0002533,2]
[359808140,1746356813923,-1324.0,0.00024953,10]
[359808141,1746356833089,-265.92094289,0.00024953,10]
[359808142,1746356833111,-744.47200149,0.00025205,2]
[359808166,1746356850090,-254.97617212,0.00025105,2]
[359808167,1746356850110,-1322.02639222,0.00025205,2]
[359808168,1746356850132,-6732.97936352,0.0002533,2]
[359808169,1746356853241,-2723.74000438,0.0002533,2]
[359808180,1746356946093,-3596.02585347,0.00025204,7]
[359808181,1746356946113,-203.98093768,0.0002523,2]
[359808182,1746356946133,-6646.22227411,0.0002533,2]
[359808183,1746356957124,-9589.73945656,0.0002533,2]
[359808184,1746356959100,-2811.68407044,0.0002533,2]
[359808185,1746356964155,-13825.92386441,0.0002533,2]
[359808186,1746356967088,-3466.5448265,0.0002533,2]
[359808187,1746356972150,-9758.01154224,0.0002533,2]
[359808212,1746357032001,-74387.80395593,0.0002533,2]
[359808213,1746357032012,-423.20306159,0.0002533,2]
[359808214,1746357032022,-1833.7635422,0.00025892,2]
[359808215,1746357032032,-163.18475016,0.00025902,2]
[359808216,1746357032041,-192.692525,0.00026003,2]
[359808217,1746357032051,-230.0742471,0.0002619,2]
[359808218,1746357032061,-3332.5911329,0.00026222,2]
[359808219,1746357032070,-163.18475012,0.00026225,2]
[359808220,1746357032080,-163.18475012,0.00026549,2]
[359808221,1746357032090,-1200.0,0.00026574,2]
[359808222,1746357032099,-300.0,0.00026846,2]
[359808223,1746357032109,-300.0,0.00026847,2]
[359808224,1746357032118,-300.0,0.00026847,2]
[359808225,1746357032127,-300.0,0.00026847,2]
[359808226,1746357032137,-163.18475012,0.00026873,2]
[359808227,1746357032147,-204.20705619,0.000269,16]
[359808228,1746357032157,-313.73916419,0.00027,3]
[359808229,1746357032166,-163.18475012,0.00027196,2]
[359808230,1746357032176,-500.0,0.00027296,2]
[359808231,1746357032185,-500.0,0.00027296,2]
[359808232,1746357032195,-500.0,0.00027296,2]
[359808233,1746357032204,-460.41658494,0.00027296,2]
[359808234,1746357032213,-636.64338292,0.00027296,2]
[359808235,1746357032229,-500.0,0.00027296,2]
[359808236,1746357032243,-500.0,0.00027296,2]
[359808237,1746357032254,-500.0,0.00027296,2]
[359808238,1746357032264,-209.99657309,0.00027296,2]
[359808239,1746357032275,-500.0,0.00027296,2]
[359808240,1746357032285,-500.0,0.00027296,2]
[359808241,1746357032295,-500.0,0.00027296,2]
[359808242,1746357032304,-500.0,0.00027296,2]
[359808243,1746357032315,-9630.42325038,0.00027297,2]
[359808244,1746357032324,-16040.02632326,0.00027297,2]
[359808245,1746357032334,-152.0,0.00027372,2]
[359808246,1746357032343,-654.23992,0.00027397,2]
[359808247,1746357032354,-500.0,0.00027397,5]
[359808248,1746357032364,-204.20705617,0.00028344,18]
[359808249,1746357032374,-1232.0,0.0002887,2]
[359808250,1746357032384,-362.0,0.00029028,2]
[359808251,1746357032393,-420.0,0.00029029,2]
[359808252,1746357032404,-204.20705617,0.00029789,21]
[359808253,1746357032413,-500.0,0.0003015,5]
[359808254,1746357032423,-500.0,0.0003015,5]
[359808255,1746357032434,-500.0,0.0003015,5]
[359808256,1746357032444,-503.40608663,0.0003015,5]
[359808257,1746357032454,-500.0,0.0003015,5]
[359808258,1746357032463,-500.0,0.0003015,5]
[359808259,1746357032473,-500.0,0.0003015,5]
[359808260,1746357032482,-500.0,0.0003015,5]
[359808261,1746357032492,-315.37114601,0.000311,2]
[359808262,1746357032502,-500.0,0.000311,5]
[359808263,1746357032511,-500.0,0.000311,5]
[359808264,1746357032521,-500.0,0.000311,5]
[359808265,1746357032531,-204.20705617,0.00031233,24]
[359808266,1746357032540,-407.0,0.00031389,2]
[359808267,1746357032550,-500.0,0.00031433,5]
[359808268,1746357032559,-500.0,0.00031575,5]
[359808269,1746357032569,-500.0,0.00031781,2]
[359808270,1746357032578,-500.0,0.00032075,5]
[359808271,1746357032588,-492.35878879,0.00032075,5]
[359808272,1746357032598,-500.0,0.00032075,5]
[359808273,1746357032607,-500.0,0.00032075,5]
[359808274,1746357032617,-204.20705617,0.00032678,27]
[359808275,1746357032627,-410.05242048,0.00032877,5]
[359808276,1746357032637,-400.21565923,0.000329,2]
[359808277,1746357032646,-366.5232165,0.0003299,2]
[359808278,1746357032656,-2000.0,0.00033,15]
[359808279,1746357032666,-2000.0,0.00033,15]
[359808280,1746357032675,-2000.0,0.00033,15]
[359808281,1746357032685,-2000.0,0.00033,15]
[359808282,1746357032695,-2000.0,0.00033,15]
[359808283,1746357032705,-2000.0,0.00033,15]
[359808284,1746357032716,-2000.0,0.00033,15]
[359808285,1746357032726,-2000.0,0.00033,15]
[359808286,1746357032735,-2000.0,0.00033,15]
[359808287,1746357032745,-2000.0,0.00033,15]
[359808288,1746357032754,-2000.0,0.00033,15]
[359808289,1746357032764,-2000.0,0.00033,15]
[359808290,1746357032774,-2000.0,0.00033,15]
[359808291,1746357032783,-2000.0,0.00033,15]
[359808292,1746357032793,-2000.0,0.00033,15]
[359808293,1746357032803,-2000.0,0.00033,15]
[359808294,1746357032812,-2000.0,0.00033,15]
[359808295,1746357032822,-2000.0,0.00033,15]
[359808296,1746357032831,-2000.0,0.00033,15]
[359808297,1746357032841,-2000.0,0.00033,15]
[359808298,1746357032851,-2000.0,0.00033,15]
[359808299,1746357032861,-2000.0,0.00033,15]
[359808300,1746357032870,-2000.0,0.00033,15]
[359808301,1746357032880,-2000.0,0.00033,15]
[359808302,1746357032889,-2000.0,0.00033,15]
[359808303,1746357032898,-2000.0,0.00033,15]
[359808304,1746357032908,-2000.0,0.00033,15]
[359808305,1746357032918,-2000.0,0.00033,15]
[359808306,1746357032928,-2000.0,0.00033,15]
[359808307,1746357032937,-2000.0,0.00033,15]
[359808308,1746357032947,-1788.8570412,0.00033,15]
[359808309,1746357032961,-211.1429588,0.00033,15]
[359808310,1746357032970,-742.8570412,0.00033,15]
[359808311,1746357032982,-1257.1429588,0.00033,15]
[359808312,1746357032991,-2000.0,0.00033,15]
[359808313,1746357033001,-2000.0,0.00033,15]
[359808314,1746357033011,-2000.0,0.00033,15]
[359808315,1746357033021,-2000.0,0.00033,15]
[359808316,1746357033031,-2000.0,0.00033,15]
[359808317,1746357033041,-500.0,0.00033,5]
[359808318,1746357033051,-300.0,0.00033,5]
[359808319,1746357033061,-500.0,0.00033,5]
[359808320,1746357033070,-500.0,0.00033,2]
[359808321,1746357033080,-500.0,0.00033,5]
[359808322,1746357033090,-500.0,0.00033,5]
[359808323,1746357033101,-500.0,0.00033,5]
[359808324,1746357033111,-538.18881436,0.00033165,2]
[359808325,1746357033132,-116.05110564,0.00033165,2]
[359808326,1746357033142,-3414.4139527,0.00033327,2]
[359808327,1746357033152,-160.0,0.0003337,2]
[359808328,1746357033162,-160.0,0.0003337,2]
[359808329,1746357033172,-160.0,0.0003337,2]
[359808330,1746357033182,-2338.58733078,0.0003337,2]
[359808331,1746357033192,-160.0,0.0003337,2]
[359808332,1746357033202,-204.20705617,0.00034122,30]
[359808333,1746357033213,-400.21565921,0.0003415,2]
[359808334,1746357033223,-600.0,0.00034644,5]
[359808335,1746357033233,-403.0,0.00034737,2]
[359808336,1746357033243,-173.61,0.0003499,3]
[359808337,1746357033252,-520.86,0.0003499,3]
[359808338,1746357033263,-366.5232165,0.0003499,2]
[359808339,1746357033275,-400.0,0.00034999,10]
[359808340,1746357033286,-2000.0,0.00035,15]
[359808341,1746357033296,-2000.0,0.00035,15]
[359808342,1746357033307,-2000.0,0.00035,15]
[359808343,1746357033317,-2000.0,0.00035,15]
[359808344,1746357033327,-2000.0,0.00035,15]
[359808345,1746357033337,-230.92533011,0.00035,15]
[359808346,1746357033350,-1769.07466989,0.00035,15]
[359808347,1746357033360,-1641.80344052,0.00035,15]
[359808579,1746357041204,-358.19655948,0.00035,15]
[359808581,1746357041214,-2000.0,0.00035,15]
[359808583,1746357041223,-901.03,0.00035,7]
[359808585,1746357041232,-400.21565921,0.000354,2]
[359808587,1746357041241,-204.20705617,0.00035567,33]
[359808589,1746357041250,-545.0,0.00035629,2]
[359808591,1746357041260,-2244.0,0.00035629,2]
[359808593,1746357041270,-707.0,0.00035629,2]
[359808595,1746357041279,-1000.0,0.00035629,5]
[359808597,1746357041288,-1000.0,0.00035629,5]
[359808599,1746357041297,-178.21813562,0.00035629,5]
[359808601,1746357041307,-500.0,0.00035653,60]
[359808603,1746357041317,-347.22,0.0003636,3]
[359808605,1746357041326,-1000.0,0.00036579,5]
[359808607,1746357041336,-1000.0,0.00036579,5]
[359808609,1746357041346,-400.21565921,0.0003665,2]
[359808611,1746357041357,-489.99727878,0.00036749,60]
[359808613,1746357041366,-500.0,0.00036913,5]
[359808615,1746357041375,-2000.0,0.00037,120]
[359808617,1746357041384,-2000.0,0.00037,120]
[359808619,1746357041393,-2000.0,0.00037,120]
[359808621,1746357041402,-2000.0,0.00037,120]
[359808623,1746357041411,-2000.0,0.00037,120]
[359808625,1746357041420,-2000.0,0.00037,120]
[359808627,1746357041429,-2000.0,0.00037,120]
[359808629,1746357041438,-2000.0,0.00037,120]
[359808631,1746357041447,-204.20705617,0.00037011,35]
[359808633,1746357041456,-562.56447029,0.00037054,5]
[359808635,1746357041465,-313.53,0.000373,2]
[359808637,1746357041475,-1238.794838,0.00037419,4]
[359808638,1746357041484,-733.046433,0.0003749,3]
[359808641,1746357041493,-2000.0,0.000375,120]
[359808643,1746357041503,-2000.0,0.000375,120]
[359808645,1746357041513,-2000.0,0.000375,120]
[359808647,1746357041522,-2000.0,0.000375,120]
[359808648,1746357041531,-2000.0,0.000375,120]
[359808650,1746357041540,-2000.0,0.000375,120]
[359808652,1746357041549,-2000.0,0.000375,120]
[359808654,1746357041558,-2000.0,0.000375,120]
[359808657,1746357041569,-2000.0,0.000375,120]
[359808658,1746357041578,-2000.0,0.000375,120]
[359808661,1746357041588,-2000.0,0.000375,120]
[359808663,1746357041597,-2000.0,0.000375,120]
[359808664,1746357041606,-2000.0,0.000375,120]
[359808667,1746357041616,-2000.0,0.000375,12]
[359808669,1746357041626,-2000.0,0.000375,120]
[359808671,1746357041636,-2000.0,0.000375,120]
[359808672,1746357041645,-2000.0,0.000375,120]
[359808675,1746357041655,-2000.0,0.000375,120]
[359808677,1746357041664,-2000.0,0.000375,120]
[359808678,1746357041673,-2000.0,0.000375,120]
[359808681,1746357041684,-2000.0,0.000375,120]
[359808683,1746357041698,-2000.0,0.000375,120]
[359808685,1746357041707,-2000.0,0.000375,120]
[359808687,1746357041717,-2000.0,0.000375,120]
[359808689,1746357041726,-2000.0,0.000375,120]
[359808691,1746357041735,-2000.0,0.000375,120]
[359808693,1746357041744,-2000.0,0.000375,120]
[359808695,1746357041753,-2000.0,0.000375,120]
[359808697,1746357041763,-2000.0,0.000375,120]
[359808699,1746357041772,-150.0,0.000375,120]
[359808701,1746357041781,-445.67883435,0.00037554,5]
[359808703,1746357041791,-656.12422405,0.00037554,5]
[359808705,1746357041799,-504.29437068,0.00037554,5]
[359808707,1746357041808,-403.0,0.00037737,2]
[359808709,1746357041818,-415.28793085,0.0003789,2]
[359808711,1746357041831,-666.68264225,0.0003789,2]
[359808714,1746357041842,-699.37004114,0.0003789,2]
[359808716,1746357041853,-7061.84970877,0.0003789,2]
[359808718,1746357041862,-400.21565921,0.000379,2]
[359808720,1746357041872,-11401.61167767,0.0003799,2]
[359808722,1746357041881,-4031.7553815,0.0003799,3]
[359808724,1746357041890,-2000.0,0.00038,120]
[359808726,1746357041899,-2000.0,0.00038,120]
[359808728,1746357041909,-2000.0,0.00038,120]
[359808730,1746357041919,-2000.0,0.00038,120]
[359808732,1746357041928,-20726.88356012,0.00038,7]
[359808734,1746357041940,-4140.47564121,0.00038,7]
[359808752,1746357042104,-25132.64079867,0.00038,7]
[359808754,1746357042115,-50000.0,0.00038,7]
[359808756,1746357042125,-50000.0,0.00038,7]
[359808758,1746357042135,-50000.0,0.00038,7]
[359808760,1746357042145,-50000.0,0.00038,7]
[359808762,1746357042155,-50000.0,0.00038,7]
[359808764,1746357042164,-50000.0,0.00038,7]
[359808766,1746357042173,-50000.0,0.00038,7]
[359808768,1746357042183,-50000.0,0.00038,7]
[359808770,1746357042193,-2000.0,0.00038,120]
[359808772,1746357042201,-2000.0,0.00038,120]
[359808774,1746357042211,-2000.0,0.00038,120]
[359808776,1746357042220,-61000.0,0.00038,7]
[359808778,1746357042230,-151.0,0.000383,19]
[359808780,1746357042240,-204.20705617,0.00038456,38]
[359808781,1746357042249,-1000.0,0.00038479,5]
[359808784,1746357042259,-1000.0,0.00038479,2]
[359808785,1746357042271,-1000.0,0.00038479,5]
[359808788,1746357042282,-1000.0,0.00038479,5]
[359808789,1746357042292,-1000.0,0.00038479,5]
[359808792,1746357042301,-1000.0,0.00038479,5]
[359808794,1746357042311,-15392.693132,0.00038889,30]
[359808795,1746357042320,-366.5232165,0.00038894,3]
[359808797,1746357042329,-1466.092866,0.00038894,3]
[359808799,1746357042339,-500.0,0.000389,10]
[359808801,1746357042350,-500.0,0.000389,15]
[359808803,1746357042359,-594.78,0.000389,10]
[359808805,1746357042369,-501.89,0.000389,15]
[359808807,1746357042378,-872.72,0.000389,10]
[359808809,1746357042387,-500.0,0.000389,15]
[359808811,1746357042398,-500.0,0.000389,10]
[359808813,1746357042409,-500.0,0.000389,15]
[359808815,1746357042419,-28302.31538451,0.00038904,2]
[359808818,1746357042429,-189.62256792,0.00038904,3]
[359808819,1746357042440,-197.78565677,0.00038904,15]
[359808821,1746357042450,-400.0,0.00038904,15]
[359808824,1746357042460,-179.8304134,0.00038904,15]
[359808826,1746357042469,-400.0,0.00038904,15]
[359808827,1746357042479,-200.0,0.00038904,15]
[359808830,1746357042489,-400.0,0.00038904,15]
[359808831,1746357042499,-400.0,0.00038904,15]
[359808834,1746357042509,-400.0,0.00038904,15]
[359808836,1746357042519,-400.0,0.00038904,15]
[359808838,1746357042528,-400.0,0.00038904,15]
[359808840,1746357042538,-400.0,0.00038904,15]
[359808842,1746357042547,-400.0,0.00038904,15]
[359808844,1746357042557,-400.0,0.00038904,15]
[359808846,1746357042566,-242.87,0.00038904,15]
[359808848,1746357042576,-400.0,0.00038904,15]
[359808850,1746357042585,-400.0,0.00038904,15]
[359808852,1746357042595,-400.0,0.00038904,15]
[359808854,1746357042604,-432.09,0.00038904,15]
[359808856,1746357042614,-400.0,0.00038904,15]
[359808858,1746357042624,-400.0,0.00038904,15]
[359808860,1746357042633,-400.0,0.00038904,15]
[359808861,1746357042642,-400.0,0.00038904,15]
[359808863,1746357042651,-155.42593052,0.00038904,15]
[359808865,1746357042660,-400.0,0.00038904,15]
[359808868,1746357042669,-400.0,0.00038904,15]
[359808871,1746357042679,-400.0,0.00038904,15]
[359808873,1746357042688,-400.0,0.00038904,15]
[359808875,1746357042698,-400.0,0.00038904,15]
[359808877,1746357042707,-400.0,0.00038904,15]
[359808878,1746357042716,-1000.0,0.00038904,15]
[359808879,1746357042724,-400.0,0.00038904,15]
[359808880,1746357042733,-500.0,0.00038904,14]
[359808881,1746357042742,-510.66495096,0.00038904,15]
[359808882,1746357042751,-400.0,0.00038904,15]
[359808883,1746357042760,-400.0,0.00038904,15]
[359808884,1746357042769,-198.61892706,0.00038904,15]
[359808885,1746357042777,-400.0,0.00038904,15]
[359808886,1746357042786,-400.0,0.00038904,15]
[359808887,1746357042795,-400.0,0.00038904,15]
[359808888,1746357042804,-500.0,0.00038904,15]
[359808889,1746357042812,-400.0,0.00038904,15]
[359808890,1746357042823,-437.3,0.00038904,15]
[359808892,1746357042832,-400.0,0.00038904,15]
[359808893,1746357042841,-400.0,0.00038904,15]
[359808894,1746357042849,-202.47612105,0.00038904,15]
[359808895,1746357042858,-400.0,0.00038904,15]
[359808896,1746357042867,-400.0,0.00038904,15]
[359808897,1746357042877,-500.0,0.00038904,15]
[359808898,1746357042886,-13018.49046401,0.00038904,120]
[359808899,1746357042897,-400.0,0.00038904,15]
[359808901,1746357042907,-400.0,0.00038904,15]
[359808903,1746357042916,-400.0,0.00038904,15]
[359808905,1746357042925,-400.0,0.00038904,15]
[359808907,1746357042934,-400.0,0.00038904,15]
[359808909,1746357042943,-400.0,0.00038904,15]
[359808911,1746357042952,-338.41690519,0.00038904,15]
[359808913,1746357042962,-400.0,0.00038904,15]
[359808915,1746357042971,-402.89,0.00038904,15]
[359808917,1746357042979,-400.0,0.00038904,14]
[359808919,1746357042988,-400.0,0.00038904,15]
[359808921,1746357042997,-400.0,0.00038904,15]
[359808923,1746357043006,-400.0,0.00038904,15]
[359808925,1746357043015,-400.0,0.00038904,15]
[359808927,1746357043024,-400.0,0.00038904,15]
[359808929,1746357043032,-400.0,0.00038904,15]
[359808931,1746357043041,-332.9551267,0.00038904,15]
[359808933,1746357043051,-400.0,0.00038904,15]
[359808935,1746357043060,-400.0,0.00038904,15]
[359808937,1746357043069,-400.0,0.00038904,15]
[359808939,1746357043079,-400.0,0.00038904,15]
[359808940,1746357043088,-400.0,0.00038904,15]
[359808942,1746357043097,-400.0,0.00038904,15]
[359808944,1746357043106,-400.0,0.00038904,15]
[359808946,1746357043115,-400.0,0.00038904,15]
[359808959,1746357043221,-400.0,0.00038904,15]
[359808961,1746357043231,-172.44,0.00038904,15]
[359808963,1746357043240,-400.0,0.00038904,15]
[359808965,1746357043250,-400.0,0.00038904,15]
[359808967,1746357043261,-400.0,0.00038904,15]
[359808969,1746357043273,-400.0,0.00038904,15]
[359808971,1746357043283,-214.31312457,0.00038904,15]
[359808973,1746357043293,-400.0,0.00038904,15]
[359808975,1746357043303,-400.0,0.00038904,15]
[359808977,1746357043314,-400.0,0.00038904,15]
[359808979,1746357043323,-214.04,0.00038904,15]
[359808981,1746357043333,-400.0,0.00038904,15]
[359808984,1746357043346,-400.0,0.00038904,15]
[359808986,1746357043355,-400.0,0.00038904,15]
[359808988,1746357043364,-400.0,0.00038904,15]
[359808991,1746357043374,-501.26591423,0.00038904,15]
[359808994,1746357043383,-400.0,0.00038904,15]
[359808996,1746357043392,-400.0,0.00038904,15]
[359808999,1746357043403,-182.3,0.00038904,15]
[359809002,1746357043413,-500.0,0.00038904,15]
[359809004,1746357043421,-500.0,0.00038904,15]
[359809006,1746357043431,-400.0,0.00038904,15]
[359809008,1746357043440,-203.10952452,0.00038904,15]
[359809010,1746357043449,-400.0,0.00038904,15]
[359809012,1746357043458,-277.52,0.00038904,15]
[359809013,1746357043467,-400.0,0.00038904,15]
[359809015,1746357043477,-400.0,0.00038904,15]
[359809017,1746357043486,-400.0,0.00038904,15]
[359809019,1746357043495,-400.0,0.00038904,15]
[359809021,1746357043504,-470.32,0.00038904,15]
[359809023,1746357043513,-412.27,0.00038904,15]
[359809025,1746357043522,-400.0,0.00038904,15]
[359809027,1746357043531,-400.0,0.00038904,15]
[359809029,1746357043541,-436.53,0.00038904,15]
[359809031,1746357043551,-400.0,0.00038904,15]
[359809033,1746357043560,-400.0,0.00038904,15]
[359809035,1746357043569,-400.0,0.00038904,15]
[359809037,1746357043579,-400.0,0.00038904,15]
[359809039,1746357043588,-400.0,0.00038904,15]
[359809041,1746357043597,-400.0,0.00038904,15]
[359809043,1746357043607,-548.6,0.00038904,15]
[359809045,1746357043616,-400.0,0.00038904,15]
[359809047,1746357043625,-400.0,0.00038904,15]
[359809049,1746357043635,-400.0,0.00038904,15]
[359809051,1746357043644,-400.0,0.00038904,15]
[359809053,1746357043653,-400.0,0.00038904,15]
[359809055,1746357043662,-400.0,0.00038904,15]
[359809057,1746357043671,-400.0,0.00038904,15]
[359809059,1746357043680,-547.69,0.00038904,15]
[359809061,1746357043689,-400.0,0.00038904,15]
[359809063,1746357043698,-400.0,0.00038904,15]
[359809065,1746357043708,-400.0,0.00038904,15]
[359809067,1746357043717,-400.0,0.00038904,15]
[359809069,1746357043726,-373.46,0.00038904,15]
[359809071,1746357043737,-400.0,0.00038904,2]
[359809073,1746357043746,-400.0,0.00038904,2]
[359809075,1746357043755,-400.0,0.00038904,2]
[359809077,1746357043764,-400.0,0.00038904,2]
[359809079,1746357043773,-400.0,0.00038904,2]
[359809081,1746357043781,-400.0,0.00038904,2]
[359809083,1746357043790,-400.0,0.00038904,15]
[359809085,1746357043799,-400.0,0.00038904,2]
[359809087,1746357043808,-400.0,0.00038904,2]
[359809089,1746357043817,-400.0,0.00038904,2]
[359809091,1746357043826,-400.0,0.00038904,15]
[359809093,1746357043835,-207.1,0.00038904,2]
[359809095,1746357043844,-400.0,0.00038904,15]
[359809097,1746357043854,-400.0,0.00038904,15]
[359809099,1746357043864,-400.0,0.00038904,15]
[359809101,1746357043873,-197.66,0.00038904,15]
[359809103,1746357043882,-400.0,0.00038904,15]
[359809105,1746357043892,-400.0,0.00038904,15]
[359809107,1746357043902,-400.0,0.00038904,15]
[359809109,1746357043911,-400.0,0.00038904,15]
[359809111,1746357043920,-400.0,0.00038904,15]
[359809113,1746357043930,-400.0,0.00038904,15]
[359809115,1746357043939,-400.0,0.00038904,15]
[359809117,1746357043948,-293.25,0.00038904,15]
[359809119,1746357043957,-400.0,0.00038904,15]
[359809121,1746357043966,-400.0,0.00038904,15]
[359809123,1746357043976,-400.0,0.00038904,15]
[359809125,1746357043985,-400.0,0.00038904,15]
[359809127,1746357043994,-400.0,0.00038904,15]
[359809129,1746357044003,-400.0,0.00038904,15]
[359809131,1746357044011,-503.57489499,0.00038904,15]
[359809133,1746357044020,-400.0,0.00038904,15]
[359809135,1746357044029,-400.0,0.00038904,15]
[359809137,1746357044039,-400.0,0.00038904,15]
[359809139,1746357044048,-400.0,0.00038904,15]
[359809141,1746357044058,-400.0,0.00038904,15]
[359809143,1746357044067,-400.0,0.00038904,15]
[359809145,1746357044078,-400.0,0.00038904,15]
[359809147,1746357044087,-400.0,0.00038904,15]
[359809149,1746357044096,-400.0,0.00038904,15]
[359809151,1746357044106,-400.0,0.00038904,15]
[359809153,1746357044116,-400.0,0.00038904,15]
[359809155,1746357044126,-400.0,0.00038904,15]
[359809157,1746357044135,-158.74,0.00038904,15]
[359809159,1746357044145,-400.0,0.00038904,15]
[359809162,1746357044155,-400.0,0.00038904,15]
[359809163,1746357044164,-375.86,0.00038904,15]
[359809165,1746357044174,-400.0,0.00038904,15]
[359809167,1746357044183,-400.0,0.00038904,15]
[359809169,1746357044192,-400.0,0.00038904,15]
[359809171,1746357044202,-400.0,0.00038904,15]
[359809173,1746357044211,-400.0,0.00038904,15]
[359809175,1746357044220,-400.0,0.00038904,15]
[359809177,1746357044229,-400.0,0.00038904,15]
[359809179,1746357044239,-400.0,0.00038904,15]
[359809181,1746357044248,-400.0,0.00038904,15]
[359809183,1746357044257,-157.64,0.00038904,15]
[359809185,1746357044267,-400.0,0.00038904,15]
[359809187,1746357044277,-270.53,0.00038904,15]
[359809189,1746357044286,-400.0,0.00038904,15]
[359809191,1746357044296,-400.0,0.00038904,15]
[359809193,1746357044305,-400.0,0.00038904,15]
[359809195,1746357044315,-341.8,0.00038904,15]
[359809197,1746357044326,-501.34674109,0.00038904,15]
[359809199,1746357044335,-400.0,0.00038904,15]
[359809201,1746357044345,-400.0,0.00038904,15]
[359809203,1746357044355,-400.0,0.00038904,15]
[359809205,1746357044364,-400.0,0.00038904,15]
[359809207,1746357044373,-400.0,0.00038904,15]
[359809209,1746357044382,-400.0,0.00038904,15]
[359809211,1746357044391,-400.0,0.00038904,15]
[359809213,1746357044400,-400.0,0.00038904,15]
[359809215,1746357044409,-400.0,0.00038904,15]
[359809217,1746357044418,-400.0,0.00038904,15]
[359809219,1746357044427,-253.93205752,0.00038904,15]
[359809221,1746357044437,-400.0,0.00038904,15]
[359809222,1746357044447,-400.0,0.00038904,15]
[359809224,1746357044455,-420.12,0.00038904,15]
[359809226,1746357044464,-400.0,0.00038904,15]
[359809228,1746357044474,-400.0,0.00038904,15]
[359809230,1746357044483,-221.4329273,0.00038904,15]
[359809232,1746357044492,-503.71114252,0.00038904,15]
[359809234,1746357044501,-390.65966051,0.00038904,15]
[359809236,1746357044510,-400.0,0.00038904,15]
[359809238,1746357044519,-400.0,0.00038904,15]
[359809240,1746357044529,-400.0,0.00038904,15]
[359809242,1746357044538,-333.74257369,0.00038904,15]
[359809244,1746357044547,-501.792626,0.00038904,15]
[359809246,1746357044556,-400.0,0.00038904,15]
[359809248,1746357044565,-1107.76736518,0.00038904,15]
[359809250,1746357044574,-400.0,0.00038904,15]
[359809252,1746357044584,-358.19,0.00038904,15]
[359809254,1746357044593,-400.0,0.00038904,15]
[359809256,1746357044602,-400.0,0.00038904,15]
[359809258,1746357044611,-515.71674155,0.00038904,15]
[359809260,1746357044620,-400.0,0.00038904,15]
[359809262,1746357044630,-400.0,0.00038904,15]
[359809264,1746357044639,-400.0,0.00038904,15]
[359809266,1746357044648,-400.0,0.00038904,15]
[359809268,1746357044657,-400.0,0.00038904,15]
[359809270,1746357044666,-369.46,0.00038904,15]
[359809272,1746357044676,-400.0,0.00038904,15]